[Event "Titled Tuesday Blitz June 20 Early 2023"]
[White "Ismagilov, Damir"]
[Black "Oparin, Grigoriy"]
[WhiteFideId "34199982"]
[BlackFideId "24125890"]
[WhiteElo "2104"]
[BlackElo "2647"]
[Result "0-1"]
[Round "2"]
[TimeControl "180+2"]
[Date "2023.06.20"]
[WhiteClock "0:00:00"]
[BlackClock "0:00:11"]
[Board "114"]

1. e4 {[%clk 0:03:00]}  c5 {[%clk 0:02:59]} 2. Nf3 {[%clk 0:03:00]}  Nc6 {[%clk 0:02:58]} 3. Bb5 {[%clk 0:03:00]}  g6 {[%clk 0:02:58]} 4. Bxc6 {[%clk 0:02:59]}  bxc6 {[%clk 0:02:58]} 5. O-O {[%clk 0:03:00]}  Bg7 {[%clk 0:02:58]} 6. d3 {[%clk 0:02:52]}  e5 {[%clk 0:02:57]} 7. a3 {[%clk 0:02:37]}  a5 {[%clk 0:02:54]} 8. Qe1 {[%clk 0:02:36]}  d6 {[%clk 0:02:53]} 9. Qc3 {[%clk 0:02:36]}  Ne7 {[%clk 0:02:50]} 10. Nbd2 {[%clk 0:02:33]}  O-O {[%clk 0:02:49]} 11. Nc4 {[%clk 0:02:31]}  Be6 {[%clk 0:02:44]} 12. h3 {[%clk 0:02:23]}  h6 {[%clk 0:02:43]} 13. a4 {[%clk 0:02:14]}  f5 {[%clk 0:02:42]} 14. b3 {[%clk 0:02:06]}  g5 {[%clk 0:02:40]} 15. Nh2 {[%clk 0:01:58]}  Ng6 {[%clk 0:02:30]} 16. f3 {[%clk 0:01:50]}  Nf4 {[%clk 0:02:28]} 17. Kh1 {[%clk 0:01:40]}  Ra7 {[%clk 0:02:17]} 18. Be3 {[%clk 0:01:28]}  h5 {[%clk 0:02:07]} 19. Qe1 {[%clk 0:01:26]}  Bf6 {[%clk 0:01:57]} 20. Bd2 {[%clk 0:01:25]}  Rh7 {[%clk 0:01:57]} 21. Bxa5 {[%clk 0:01:24]}  Qd7 {[%clk 0:01:56]} 22. Bd2 {[%clk 0:01:07]}  g4 {[%clk 0:01:56]} 23. Bxf4 {[%clk 0:01:02]}  exf4 {[%clk 0:01:57]} 24. e5 {[%clk 0:00:56]}  dxe5 {[%clk 0:01:34]} 25. Nxe5 {[%clk 0:00:57]}  Qd6 {[%clk 0:01:34]} 26. d4 {[%clk 0:00:45]}  g3 {[%clk 0:01:31]} 27. dxc5 {[%clk 0:00:39]}  Qxe5 {[%clk 0:01:23]} 28. Qxe5 {[%clk 0:00:39]}  Bxe5 {[%clk 0:01:24]} 29. Rae1 {[%clk 0:00:40]}  Bc4 {[%clk 0:00:36]} 30. bxc4 {[%clk 0:00:35]}  Bc3 {[%clk 0:00:35]} 31. Re6 {[%clk 0:00:31]}  gxh2 {[%clk 0:00:35]} 32. Rxc6 {[%clk 0:00:31]}  Re7 {[%clk 0:00:34]} 33. Kxh2 {[%clk 0:00:26]}  Be1 {[%clk 0:00:32]} 34. Rd6 {[%clk 0:00:21]}  Rc8 {[%clk 0:00:31]} 35. c6 {[%clk 0:00:20]}  Kf7 {[%clk 0:00:30]} 36. Rd7 {[%clk 0:00:19]}  Bg3+ {[%clk 0:00:29]} 37. Kg1 {[%clk 0:00:19]}  Rxc6 {[%clk 0:00:30]} 38. Rxe7+ {[%clk 0:00:15]}  Kxe7 {[%clk 0:00:31]} 39. a5 {[%clk 0:00:14]}  Ra6 {[%clk 0:00:28]} 40. Ra1 {[%clk 0:00:12]}  Kd6 {[%clk 0:00:29]} 41. Kf1 {[%clk 0:00:10]}  Kc5 {[%clk 0:00:29]} 42. Ke2 {[%clk 0:00:11]}  Kxc4 {[%clk 0:00:29]} 43. Kd2 {[%clk 0:00:09]}  Rd6+ {[%clk 0:00:24]} 44. Ke2 {[%clk 0:00:08]}  Ra6 {[%clk 0:00:22]} 45. Kd2 {[%clk 0:00:09]}  Bh4 {[%clk 0:00:18]} 46. Ke2 {[%clk 0:00:06]}  Kb5 {[%clk 0:00:16]} 47. Kd3 {[%clk 0:00:05]}  Rd6+ {[%clk 0:00:16]} 48. Ke2 {[%clk 0:00:05]}  Ra6 {[%clk 0:00:16]} 49. Kd3 {[%clk 0:00:05]}  Bf6 {[%clk 0:00:16]} 50. c4+ {[%clk 0:00:04]}  Kc5 {[%clk 0:00:16]} 51. Ra4 {[%clk 0:00:03]}  h4 {[%clk 0:00:15]} 52. Kc2 {[%clk 0:00:03]}  Bd4 {[%clk 0:00:14]} 53. Kd3 {[%clk 0:00:03]}  Be3 {[%clk 0:00:14]} 54. Kc3 {[%clk 0:00:02]}  Kc6 {[%clk 0:00:14]} 55. Kb4 {[%clk 0:00:02]}  Bc5+ {[%clk 0:00:15]} 56. Kc3 {[%clk 0:00:02]}  Kb7 {[%clk 0:00:15]} 57. Ra2 {[%clk 0:00:02]}  Re6 {[%clk 0:00:16]} 58. Rb2+ {[%clk 0:00:02]}  Kc6 {[%clk 0:00:16]} 59. Rb5 {[%clk 0:00:02]}  Re3+ {[%clk 0:00:17]} 60. Kb2 {[%clk 0:00:02]}  Re2+ {[%clk 0:00:17]} 61. Kb3 {[%clk 0:00:03]}  Rxg2 {[%clk 0:00:18]} 62. a6 {[%clk 0:00:03]}  Rg3 {[%clk 0:00:18]} 63. Kb2 {[%clk 0:00:03]}  Rg2+ {[%clk 0:00:16]} 64. Kb3 {[%clk 0:00:03]}  Rg1 {[%clk 0:00:17]} 65. Ra5 {[%clk 0:00:02]}  Rg7 {[%clk 0:00:12]} 66. Kc3 {[%clk 0:00:02]}  Re7 {[%clk 0:00:12]} 67. Kc2 {[%clk 0:00:01]}  Re2+ {[%clk 0:00:11]} 68. Kd3 {[%clk 0:00:01]}  Re3+ {[%clk 0:00:12]} 69. Kc2 {[%clk 0:00:02]}  Ba7 {[%clk 0:00:12]} 70. Rxf5 {[%clk 0:00:01]}  Rxf3 {[%clk 0:00:12]} 71. Rf6+ {[%clk 0:00:02]}  Kc5 {[%clk 0:00:12]} 72. Rf7 {[%clk 0:00:03]}  Kb6 {[%clk 0:00:13]} 73. Rf6+ {[%clk 0:00:03]}  Ka5 {[%clk 0:00:13]} 74. c5 {[%clk 0:00:02]}  Bxc5 {[%clk 0:00:13]} 75. Rf5 {[%clk 0:00:00]}  Kb4 {[%clk 0:00:11]} 0-1


[Site "https://www.chess.com"]

[Event "Titled Tuesday Blitz June 20 Early 2023"]
[White "Richter, Paul"]
[Black "Andreikin, Dmitry"]
[WhiteFideId "2046350"]
[BlackFideId "4158814"]
[WhiteElo "2523"]
[BlackElo "2736"]
[Result "0-1"]
[Round "2"]
[TimeControl "180+2"]
[Date "2023.06.20"]
[WhiteClock "0:00:14"]
[BlackClock "0:01:56"]
[Board "115"]

1. e4 {[%clk 0:03:00]}  c5 {[%clk 0:02:58]} 2. Nf3 {[%clk 0:03:00]}  d6 {[%clk 0:02:58]} 3. d4 {[%clk 0:03:00]}  cxd4 {[%clk 0:02:58]} 4. Nxd4 {[%clk 0:03:01]}  Nf6 {[%clk 0:02:59]} 5. Nc3 {[%clk 0:03:01]}  g6 {[%clk 0:02:59]} 6. Be3 {[%clk 0:03:01]}  Nc6 {[%clk 0:02:58]} 7. f3 {[%clk 0:03:00]}  h5 {[%clk 0:02:58]} 8. Qd2 {[%clk 0:02:56]}  Nxd4 {[%clk 0:02:58]} 9. Bxd4 {[%clk 0:02:55]}  Bh6 {[%clk 0:02:58]} 10. Be3 {[%clk 0:02:55]}  Bxe3 {[%clk 0:02:57]} 11. Qxe3 {[%clk 0:02:55]}  Be6 {[%clk 0:02:55]} 12. Bb5+ {[%clk 0:02:53]}  Kf8 {[%clk 0:02:56]} 13. O-O-O {[%clk 0:02:45]}  Qa5 {[%clk 0:02:53]} 14. Ba4 {[%clk 0:02:26]}  Rc8 {[%clk 0:02:50]} 15. Bb3 {[%clk 0:02:04]}  Bxb3 {[%clk 0:02:50]} 16. axb3 {[%clk 0:02:05]}  Qa1+ {[%clk 0:02:49]} 17. Nb1 {[%clk 0:02:05]}  Kg7 {[%clk 0:02:44]} 18. Rd4 {[%clk 0:01:54]}  Qa5 {[%clk 0:02:43]} 19. Ra4 {[%clk 0:01:46]}  Qe5 {[%clk 0:02:39]} 20. Rxa7 {[%clk 0:01:21]}  d5 {[%clk 0:02:39]} 21. Rd1 {[%clk 0:01:02]}  dxe4 {[%clk 0:02:39]} 22. Nc3 {[%clk 0:00:58]}  Qxh2 {[%clk 0:02:35]} 23. Rxb7 {[%clk 0:00:49]}  Qxg2 {[%clk 0:02:31]} 24. fxe4 {[%clk 0:00:48]}  Rhd8 {[%clk 0:02:18]} 25. Rxd8 {[%clk 0:00:36]}  Rxd8 {[%clk 0:02:17]} 26. Qe1 {[%clk 0:00:32]}  Ng4 {[%clk 0:02:05]} 27. Nd5 {[%clk 0:00:27]}  e6 {[%clk 0:01:59]} 28. Ne3 {[%clk 0:00:20]}  Nxe3 {[%clk 0:01:57]} 29. Qc3+ {[%clk 0:00:14]}  Kg8 {[%clk 0:01:56]} 0-1


[Site "https://www.chess.com"]

[Event "Titled Tuesday Blitz June 20 Early 2023"]
[White "Drozdowski, Kacper"]
[Black "Gheorghiu, Calin"]
[WhiteFideId "1136720"]
[BlackFideId "1200305"]
[WhiteElo "2497"]
[BlackElo "2204"]
[Result "0-1"]
[Round "2"]
[TimeControl "180+2"]
[Date "2023.06.20"]
[WhiteClock "0:00:15"]
[BlackClock "0:00:12"]
[Board "116"]

1. e4 {[%clk 0:03:00]}  c5 {[%clk 0:02:58]} 2. Nf3 {[%clk 0:03:01]}  d6 {[%clk 0:02:57]} 3. d4 {[%clk 0:03:01]}  cxd4 {[%clk 0:02:58]} 4. Nxd4 {[%clk 0:03:02]}  Nf6 {[%clk 0:02:59]} 5. f3 {[%clk 0:03:02]}  e5 {[%clk 0:02:58]} 6. Nb3 {[%clk 0:03:02]}  d5 {[%clk 0:02:58]} 7. Bg5 {[%clk 0:03:03]}  d4 {[%clk 0:02:51]} 8. c3 {[%clk 0:03:00]}  Nc6 {[%clk 0:02:49]} 9. Bb5 {[%clk 0:02:59]}  h6 {[%clk 0:02:13]} 10. Bxf6 {[%clk 0:02:53]}  Qxf6 {[%clk 0:02:13]} 11. cxd4 {[%clk 0:02:51]}  Bb4+ {[%clk 0:02:12]} 12. Nc3 {[%clk 0:02:45]}  O-O {[%clk 0:02:11]} 13. Bxc6 {[%clk 0:02:42]}  bxc6 {[%clk 0:02:11]} 14. dxe5 {[%clk 0:02:39]}  Qxe5 {[%clk 0:02:09]} 15. Qd4 {[%clk 0:02:39]}  Qb5 {[%clk 0:01:56]} 16. O-O-O {[%clk 0:02:26]}  Bxc3 {[%clk 0:01:20]} 17. Qxc3 {[%clk 0:02:24]}  Be6 {[%clk 0:01:18]} 18. Nd4 {[%clk 0:02:17]}  Qg5+ {[%clk 0:01:17]} 19. Qd2 {[%clk 0:02:11]}  Bxa2 {[%clk 0:00:55]} 20. Qxg5 {[%clk 0:02:07]}  hxg5 {[%clk 0:00:55]} 21. Rd3 {[%clk 0:01:38]}  c5 {[%clk 0:00:49]} 22. Nc6 {[%clk 0:01:26]}  f6 {[%clk 0:00:37]} 23. Rc3 {[%clk 0:01:24]}  Rf7 {[%clk 0:00:25]} 24. Rd1 {[%clk 0:01:21]}  Rc7 {[%clk 0:00:24]} 25. Rd6 {[%clk 0:01:18]}  Rac8 {[%clk 0:00:19]} 26. Na5 {[%clk 0:01:16]}  Bf7 {[%clk 0:00:18]} 27. Kc2 {[%clk 0:01:12]}  Rb8 {[%clk 0:00:18]} 28. Rc6 {[%clk 0:01:06]}  Rxc6 {[%clk 0:00:12]} 29. Nxc6 {[%clk 0:01:06]}  Rb7 {[%clk 0:00:12]} 30. Rxc5 {[%clk 0:01:03]}  Rc7 {[%clk 0:00:13]} 31. b4 {[%clk 0:00:58]}  Be8 {[%clk 0:00:13]} 32. Nd4 {[%clk 0:00:53]}  Rxc5+ {[%clk 0:00:09]} 33. bxc5 {[%clk 0:00:54]}  Kf7 {[%clk 0:00:09]} 34. Kc3 {[%clk 0:00:54]}  Ke7 {[%clk 0:00:10]} 35. Nf5+ {[%clk 0:00:53]}  Kf7 {[%clk 0:00:09]} 36. Kb4 {[%clk 0:00:45]}  g6 {[%clk 0:00:09]} 37. Ne3 {[%clk 0:00:41]}  Ke6 {[%clk 0:00:09]} 38. Nd5 {[%clk 0:00:38]}  Bc6 {[%clk 0:00:08]} 39. Kc4 {[%clk 0:00:34]}  f5 {[%clk 0:00:08]} 40. Kd4 {[%clk 0:00:34]}  a5 {[%clk 0:00:07]} 41. Nb6 {[%clk 0:00:33]}  g4 {[%clk 0:00:07]} 42. fxg4 {[%clk 0:00:23]}  fxe4 {[%clk 0:00:06]} 43. h4 {[%clk 0:00:17]}  a4 {[%clk 0:00:07]} 44. Nc4 {[%clk 0:00:17]}  Kf6 {[%clk 0:00:04]} 45. g3 {[%clk 0:00:17]}  g5 {[%clk 0:00:04]} 46. h5 {[%clk 0:00:17]}  Kg7 {[%clk 0:00:04]} 47. Ne3 {[%clk 0:00:16]}  a3 {[%clk 0:00:04]} 48. Kc3 {[%clk 0:00:16]}  Ba4 {[%clk 0:00:03]} 49. Nc4 {[%clk 0:00:15]}  a2 {[%clk 0:00:02]} 50. Kb2 {[%clk 0:00:15]}  Bb3 {[%clk 0:00:02]} 51. Ne3 {[%clk 0:00:14]}  Kf6 {[%clk 0:00:02]} 52. c6 {[%clk 0:00:14]}  Ke7 {[%clk 0:00:02]} 53. h6 {[%clk 0:00:14]}  Bg8 {[%clk 0:00:01]} 54. Nd5+ {[%clk 0:00:12]}  Kd6 {[%clk 0:00:02]} 55. Nf6 {[%clk 0:00:12]}  e3 {[%clk 0:00:02]} 56. Nxg8 {[%clk 0:00:06]}  e2 {[%clk 0:00:02]} 57. h7 {[%clk 0:00:07]}  a1=Q+ {[%clk 0:00:02]} 58. Kxa1 {[%clk 0:00:07]}  e1=Q+ {[%clk 0:00:03]} 59. Kb2 {[%clk 0:00:08]}  Qe2+ {[%clk 0:00:04]} 60. Kc3 {[%clk 0:00:08]}  Qe3+ {[%clk 0:00:05]} 61. Kb2 {[%clk 0:00:08]}  Qd2+ {[%clk 0:00:05]} 62. Ka3 {[%clk 0:00:08]}  Qd3+ {[%clk 0:00:05]} 63. Kb4 {[%clk 0:00:09]}  Qxh7 {[%clk 0:00:06]} 64. Nf6 {[%clk 0:00:09]}  Qf7 {[%clk 0:00:06]} 65. Ne4+ {[%clk 0:00:09]}  Kxc6 {[%clk 0:00:06]} 66. Kc3 {[%clk 0:00:09]}  Qe7 {[%clk 0:00:07]} 67. Kd4 {[%clk 0:00:09]}  Qd7+ {[%clk 0:00:05]} 68. Ke5 {[%clk 0:00:09]}  Qd5+ {[%clk 0:00:06]} 69. Kf6 {[%clk 0:00:10]}  Qxe4 {[%clk 0:00:06]} 70. Kxg5 {[%clk 0:00:10]}  Kd6 {[%clk 0:00:07]} 71. Kh5 {[%clk 0:00:09]}  Ke7 {[%clk 0:00:07]} 72. g5 {[%clk 0:00:10]}  Kf7 {[%clk 0:00:08]} 73. g6+ {[%clk 0:00:09]}  Qxg6+ {[%clk 0:00:08]} 74. Kh4 {[%clk 0:00:10]}  Kf6 {[%clk 0:00:09]} 75. Kh3 {[%clk 0:00:11]}  Kf5 {[%clk 0:00:09]} 76. Kg2 {[%clk 0:00:11]}  Qg4 {[%clk 0:00:10]} 77. Kf2 {[%clk 0:00:12]}  Ke4 {[%clk 0:00:10]} 78. Ke1 {[%clk 0:00:13]}  Qf3 {[%clk 0:00:10]} 79. Kd2 {[%clk 0:00:13]}  Kd4 {[%clk 0:00:11]} 80. Kc1 {[%clk 0:00:14]}  Qe2 {[%clk 0:00:11]} 81. Kb1 {[%clk 0:00:14]}  Kc3 {[%clk 0:00:12]} 82. Ka1 {[%clk 0:00:15]}  Qb2# {[%clk 0:00:12]} 0-1


[Site "https://www.chess.com"]

[Event "Titled Tuesday Blitz June 20 Early 2023"]
[White "Vyatkin, Dmitry"]
[Black "Sattarov, Bobir"]
[WhiteFideId "4171900"]
[BlackFideId "14203081"]
[WhiteElo "2279"]
[BlackElo "2351"]
[Result "0-1"]
[Round "2"]
[TimeControl "180+2"]
[Date "2023.06.20"]
[WhiteClock "0:00:00"]
[BlackClock "0:00:01"]
[Board "117"]

1. d4 {[%clk 0:02:57]}  Nf6 {[%clk 0:02:57]} 2. c4 {[%clk 0:02:57]}  e6 {[%clk 0:02:57]} 3. g3 {[%clk 0:02:57]}  d5 {[%clk 0:02:57]} 4. Nf3 {[%clk 0:02:56]}  dxc4 {[%clk 0:02:56]} 5. Bg2 {[%clk 0:02:56]}  c6 {[%clk 0:02:54]} 6. O-O {[%clk 0:02:54]}  b5 {[%clk 0:02:51]} 7. a4 {[%clk 0:02:39]}  Bb7 {[%clk 0:02:51]} 8. Ne5 {[%clk 0:02:38]}  a6 {[%clk 0:02:50]} 9. Nc3 {[%clk 0:02:31]}  Bb4 {[%clk 0:02:06]} 10. Bg5 {[%clk 0:01:57]}  O-O {[%clk 0:01:37]} 11. axb5 {[%clk 0:01:37]}  axb5 {[%clk 0:01:36]} 12. Rxa8 {[%clk 0:01:34]}  Bxa8 {[%clk 0:01:37]} 13. Nxb5 {[%clk 0:01:34]}  cxb5 {[%clk 0:01:37]} 14. Bxa8 {[%clk 0:01:34]}  Qa5 {[%clk 0:01:06]} 15. Bf3 {[%clk 0:01:29]}  Nd5 {[%clk 0:01:06]} 16. e4 {[%clk 0:01:25]}  Nb6 {[%clk 0:01:05]} 17. Be3 {[%clk 0:01:21]}  Rd8 {[%clk 0:01:00]} 18. Bh5 {[%clk 0:01:13]}  g6 {[%clk 0:00:58]} 19. Bf3 {[%clk 0:01:10]}  N6d7 {[%clk 0:00:50]} 20. Ng4 {[%clk 0:01:07]}  Qa2 {[%clk 0:00:33]} 21. Qc1 {[%clk 0:01:07]}  h5 {[%clk 0:00:31]} 22. Nh6+ {[%clk 0:00:47]}  Kg7 {[%clk 0:00:30]} 23. d5 {[%clk 0:00:46]}  e5 {[%clk 0:00:24]} 24. Bd1 {[%clk 0:00:32]}  Nf6 {[%clk 0:00:21]} 25. f4 {[%clk 0:00:30]}  Nbd7 {[%clk 0:00:16]} 26. fxe5 {[%clk 0:00:28]}  Nxe5 {[%clk 0:00:17]} 27. Rxf6 {[%clk 0:00:27]}  Kxf6 {[%clk 0:00:16]} 28. Bg5+ {[%clk 0:00:26]}  Kg7 {[%clk 0:00:16]} 29. Bxd8 {[%clk 0:00:27]}  Qa7+ {[%clk 0:00:13]} 30. Kh1 {[%clk 0:00:13]}  Qf2 {[%clk 0:00:12]} 31. Qf4 {[%clk 0:00:11]}  Qe1+ {[%clk 0:00:11]} 32. Kg2 {[%clk 0:00:12]}  Bd6 {[%clk 0:00:03]} 33. Bf6+ {[%clk 0:00:07]}  Kh7 {[%clk 0:00:03]} 34. Bxe5 {[%clk 0:00:07]}  Bxe5 {[%clk 0:00:02]} 35. Qxe5 {[%clk 0:00:08]}  Qd2+ {[%clk 0:00:02]} 36. Kh3 {[%clk 0:00:07]}  Qxd1 {[%clk 0:00:02]} 37. Qf4 {[%clk 0:00:03]}  f6 {[%clk 0:00:01]} 38. Nf7 {[%clk 0:00:02]}  Kg7 {[%clk 0:00:01]} 39. Nd8 {[%clk 0:00:01]}  g5 {[%clk 0:00:01]} 40. Ne6+ {[%clk 0:00:00]}  Kg8 {[%clk 0:00:01]} 0-1


[Site "https://www.chess.com"]

[Event "Titled Tuesday Blitz June 20 Early 2023"]
[White "Stepanencu, Nicodim-Cosmin"]
[Black "Lalanne, Pablo"]
[WhiteFideId "1256220"]
[BlackFideId "112151"]
[WhiteElo "2154"]
[BlackElo "2120"]
[Result "1-0"]
[Round "2"]
[TimeControl "180+2"]
[Date "2023.06.20"]
[WhiteClock "0:00:12"]
[BlackClock "0:00:16"]
[Board "121"]

1. f4 {[%clk 0:03:00]}  d5 {[%clk 0:02:57]} 2. Nf3 {[%clk 0:03:01]}  g6 {[%clk 0:02:56]} 3. e3 {[%clk 0:03:00]}  Bg7 {[%clk 0:02:56]} 4. Be2 {[%clk 0:03:00]}  c5 {[%clk 0:02:56]} 5. O-O {[%clk 0:03:00]}  Nc6 {[%clk 0:02:56]} 6. d3 {[%clk 0:02:59]}  e6 {[%clk 0:02:53]} 7. Nc3 {[%clk 0:02:54]}  Nge7 {[%clk 0:02:53]} 8. e4 {[%clk 0:02:55]}  O-O {[%clk 0:02:52]} 9. Kh1 {[%clk 0:02:51]}  Rb8 {[%clk 0:02:41]} 10. a4 {[%clk 0:02:50]}  a6 {[%clk 0:02:41]} 11. e5 {[%clk 0:02:29]}  b5 {[%clk 0:02:37]} 12. axb5 {[%clk 0:02:28]}  axb5 {[%clk 0:02:38]} 13. d4 {[%clk 0:02:28]}  b4 {[%clk 0:02:35]} 14. Nb5 {[%clk 0:02:26]}  cxd4 {[%clk 0:02:31]} 15. Nfxd4 {[%clk 0:02:22]}  Nxd4 {[%clk 0:02:24]} 16. Qxd4 {[%clk 0:02:20]}  Nc6 {[%clk 0:02:13]} 17. Qc5 {[%clk 0:02:17]}  Bd7 {[%clk 0:02:01]} 18. Nd6 {[%clk 0:02:12]}  b3 {[%clk 0:01:53]} 19. c3 {[%clk 0:02:08]}  f6 {[%clk 0:01:50]} 20. Bb5 {[%clk 0:01:54]}  Ne7 {[%clk 0:01:31]} 21. Bxd7 {[%clk 0:01:52]}  Qxd7 {[%clk 0:01:31]} 22. Ra7 {[%clk 0:01:52]}  Qd8 {[%clk 0:01:27]} 23. Nb7 {[%clk 0:01:27]}  Qe8 {[%clk 0:01:18]} 24. Na5 {[%clk 0:01:08]}  Nf5 {[%clk 0:01:06]} 25. g4 {[%clk 0:00:59]}  Nh6 {[%clk 0:01:02]} 26. Nc6 {[%clk 0:00:54]}  fxe5 {[%clk 0:00:46]} 27. Re7 {[%clk 0:00:27]}  Qc8 {[%clk 0:00:41]} 28. Qa7 {[%clk 0:00:27]}  Nf7 {[%clk 0:00:31]} 29. Nxb8 {[%clk 0:00:17]}  Qxb8 {[%clk 0:00:31]} 30. Rxf7 {[%clk 0:00:17]}  Qxa7 {[%clk 0:00:26]} 31. Rxa7 {[%clk 0:00:17]}  d4 {[%clk 0:00:20]} 32. Kg2 {[%clk 0:00:14]}  e4 {[%clk 0:00:19]} 33. cxd4 {[%clk 0:00:12]}  Bxd4 {[%clk 0:00:18]} 34. Rd7 {[%clk 0:00:13]}  e5 {[%clk 0:00:16]} 35. fxe5 {[%clk 0:00:12]} 1-0


[Site "https://www.chess.com"]

[Event "Titled Tuesday Blitz June 20 Early 2023"]
[White "Eugene, Floryan"]
[Black "Buscar, Michael"]
[WhiteFideId "20694784"]
[BlackFideId "2603616"]
[WhiteElo "2369"]
[BlackElo "2010"]
[Result "1-0"]
[Round "2"]
[TimeControl "180+2"]
[Date "2023.06.20"]
[WhiteClock "0:00:32"]
[BlackClock "0:00:10"]
[Board "122"]

1. d4 {[%clk 0:03:00]}  d5 {[%clk 0:02:59]} 2. Nf3 {[%clk 0:02:59]}  e6 {[%clk 0:03:00]} 3. c4 {[%clk 0:02:58]}  c5 {[%clk 0:02:59]} 4. Nc3 {[%clk 0:02:53]}  Nc6 {[%clk 0:02:58]} 5. cxd5 {[%clk 0:02:51]}  exd5 {[%clk 0:02:59]} 6. g3 {[%clk 0:02:50]}  Nf6 {[%clk 0:02:59]} 7. Bg2 {[%clk 0:02:50]}  Be7 {[%clk 0:03:00]} 8. O-O {[%clk 0:02:50]}  O-O {[%clk 0:03:01]} 9. dxc5 {[%clk 0:02:49]}  Bxc5 {[%clk 0:03:01]} 10. a3 {[%clk 0:02:47]}  Be6 {[%clk 0:02:46]} 11. b4 {[%clk 0:02:46]}  Be7 {[%clk 0:02:46]} 12. Bb2 {[%clk 0:02:44]}  Rc8 {[%clk 0:02:44]} 13. e3 {[%clk 0:02:35]}  Ne4 {[%clk 0:02:43]} 14. Ne2 {[%clk 0:02:25]}  Bf6 {[%clk 0:02:35]} 15. Nfd4 {[%clk 0:02:06]}  Bd7 {[%clk 0:02:13]} 16. Nf4 {[%clk 0:02:04]}  Nxd4 {[%clk 0:02:08]} 17. Bxd4 {[%clk 0:02:03]}  Bb5 {[%clk 0:01:56]} 18. Re1 {[%clk 0:01:41]}  Bc4 {[%clk 0:01:37]} 19. Nh5 {[%clk 0:01:16]}  b6 {[%clk 0:00:50]} 20. Bxe4 {[%clk 0:01:00]}  dxe4 {[%clk 0:00:40]} 21. Nxf6+ {[%clk 0:00:52]}  gxf6 {[%clk 0:00:39]} 22. Qg4+ {[%clk 0:00:50]}  Kh8 {[%clk 0:00:39]} 23. Rac1 {[%clk 0:00:46]}  Re8 {[%clk 0:00:14]} 24. Red1 {[%clk 0:00:35]}  Qe7 {[%clk 0:00:12]} 25. Qh4 {[%clk 0:00:32]}  Kg7 {[%clk 0:00:12]} 26. Qg5+ {[%clk 0:00:31]}  Kf8 {[%clk 0:00:10]} 27. Bxf6 {[%clk 0:00:32]} 1-0


[Site "https://www.chess.com"]

[Event "Titled Tuesday Blitz June 20 Early 2023"]
[White "Kuzmin, Ilya"]
[Black "Janaszak, Dawid"]
[WhiteFideId "4153863"]
[BlackFideId "1119206"]
[WhiteElo "2093"]
[BlackElo "2220"]
[Result "0-1"]
[Round "2"]
[TimeControl "180+2"]
[Date "2023.06.20"]
[WhiteClock "0:00:00"]
[BlackClock "0:00:05"]
[Board "125"]

1. d4 {[%clk 0:02:59]}  Nf6 {[%clk 0:02:59]} 2. c4 {[%clk 0:03:00]}  g6 {[%clk 0:02:59]} 3. f3 {[%clk 0:03:00]}  d6 {[%clk 0:02:47]} 4. e4 {[%clk 0:03:00]}  Bg7 {[%clk 0:02:48]} 5. Nc3 {[%clk 0:03:00]}  O-O {[%clk 0:02:48]} 6. Bg5 {[%clk 0:03:01]}  h6 {[%clk 0:02:46]} 7. Be3 {[%clk 0:03:01]}  a6 {[%clk 0:02:43]} 8. Qd2 {[%clk 0:03:00]}  Kh7 {[%clk 0:02:40]} 9. O-O-O {[%clk 0:03:00]}  b5 {[%clk 0:02:40]} 10. cxb5 {[%clk 0:03:00]}  axb5 {[%clk 0:02:40]} 11. Bxb5 {[%clk 0:03:00]}  Ba6 {[%clk 0:02:39]} 12. Bxa6 {[%clk 0:02:54]}  Nxa6 {[%clk 0:02:39]} 13. e5 {[%clk 0:02:51]}  Nd7 {[%clk 0:02:39]} 14. f4 {[%clk 0:02:51]}  Nb6 {[%clk 0:02:33]} 15. b3 {[%clk 0:02:35]}  e6 {[%clk 0:02:11]} 16. Nge2 {[%clk 0:02:33]}  dxe5 {[%clk 0:02:08]} 17. dxe5 {[%clk 0:02:29]}  Qe7 {[%clk 0:02:08]} 18. Kb1 {[%clk 0:02:16]}  Nb4 {[%clk 0:01:57]} 19. Bxb6 {[%clk 0:02:09]}  cxb6 {[%clk 0:01:53]} 20. Qd6 {[%clk 0:02:10]}  Rfe8 {[%clk 0:01:31]} 21. Qxe7 {[%clk 0:02:09]}  Rxe7 {[%clk 0:01:32]} 22. Rd6 {[%clk 0:02:09]}  Rea7 {[%clk 0:01:27]} 23. a4 {[%clk 0:02:08]}  Rc7 {[%clk 0:01:05]} 24. Rxb6 {[%clk 0:02:02]}  Nd3 {[%clk 0:01:05]} 25. g3 {[%clk 0:01:54]}  Rac8 {[%clk 0:01:04]} 26. Rd1 {[%clk 0:01:38]}  Nf2 {[%clk 0:01:02]} 27. Rc1 {[%clk 0:01:35]}  Nd3 {[%clk 0:01:02]} 28. Rc2 {[%clk 0:01:31]}  Ne1 {[%clk 0:01:02]} 29. Rd2 {[%clk 0:01:28]}  Nf3 {[%clk 0:00:54]} 30. Ra2 {[%clk 0:01:11]}  Bf8 {[%clk 0:00:47]} 31. Ne4 {[%clk 0:01:02]}  Bc5 {[%clk 0:00:28]} 32. Nxc5 {[%clk 0:01:00]}  Rxc5 {[%clk 0:00:28]} 33. a5 {[%clk 0:00:57]}  Rd5 {[%clk 0:00:25]} 34. Rc2 {[%clk 0:00:42]}  Rxc2 {[%clk 0:00:25]} 35. Kxc2 {[%clk 0:00:43]}  Rd2+ {[%clk 0:00:26]} 36. Kc3 {[%clk 0:00:42]}  Rxe2 {[%clk 0:00:26]} 37. Rb7 {[%clk 0:00:39]}  Kg7 {[%clk 0:00:21]} 38. a6 {[%clk 0:00:36]}  Ra2 {[%clk 0:00:20]} 39. a7 {[%clk 0:00:36]}  g5 {[%clk 0:00:16]} 40. b4 {[%clk 0:00:35]}  Nxh2 {[%clk 0:00:09]} 41. b5 {[%clk 0:00:34]}  Nf1 {[%clk 0:00:09]} 42. b6 {[%clk 0:00:30]}  Ne3 {[%clk 0:00:09]} 43. Kb3 {[%clk 0:00:23]}  Ra1 {[%clk 0:00:09]} 44. Rb8 {[%clk 0:00:22]}  Nd5 {[%clk 0:00:05]} 45. fxg5 {[%clk 0:00:19]}  hxg5 {[%clk 0:00:05]} 46. b7 {[%clk 0:00:12]}  Rxa7 {[%clk 0:00:04]} 47. Rg8+ {[%clk 0:00:12]}  Kh7 {[%clk 0:00:04]} 48. b8=Q {[%clk 0:00:12]}  Re7 {[%clk 0:00:03]} 49. Rh8+ {[%clk 0:00:12]}  Kg6 {[%clk 0:00:04]} 50. Qg8+ {[%clk 0:00:12]}  Kf5 {[%clk 0:00:05]} 51. Rh2 {[%clk 0:00:09]}  Kg4 {[%clk 0:00:06]} 52. Qg7 {[%clk 0:00:08]}  Rb7+ {[%clk 0:00:06]} 53. Ka2 {[%clk 0:00:07]}  Ra7+ {[%clk 0:00:06]} 54. Kb3 {[%clk 0:00:07]}  Rb7+ {[%clk 0:00:06]} 55. Ka4 {[%clk 0:00:07]}  Nc3+ {[%clk 0:00:06]} 56. Ka5 {[%clk 0:00:07]}  Nd5 {[%clk 0:00:07]} 57. Rf2 {[%clk 0:00:05]}  Kxg3 {[%clk 0:00:07]} 58. Rxf7 {[%clk 0:00:05]}  Rxf7 {[%clk 0:00:04]} 59. Qxf7 {[%clk 0:00:05]}  Nf4 {[%clk 0:00:05]} 60. Qf6 {[%clk 0:00:00]}  g4 {[%clk 0:00:05]} 0-1


[Site "https://www.chess.com"]

[Event "Titled Tuesday Blitz June 20 Early 2023"]
[White "Aloma Vidal, Robert"]
[Black "Cardenas Carbajal, Nilson"]
[WhiteFideId "2260409"]
[BlackFideId "8401128"]
[WhiteElo "2435"]
[BlackElo "1972"]
[Result "1-0"]
[Round "2"]
[TimeControl "180+2"]
[Date "2023.06.20"]
[WhiteClock "0:02:03"]
[BlackClock "0:00:36"]
[Board "127"]

1. e4 {[%clk 0:03:00]}  c5 {[%clk 0:02:57]} 2. c3 {[%clk 0:03:01]}  d5 {[%clk 0:02:54]} 3. exd5 {[%clk 0:03:02]}  Nf6 {[%clk 0:02:49]} 4. d4 {[%clk 0:03:02]}  cxd4 {[%clk 0:02:48]} 5. Nf3 {[%clk 0:03:01]}  Nxd5 {[%clk 0:02:44]} 6. Nxd4 {[%clk 0:02:59]}  g6 {[%clk 0:02:44]} 7. Bc4 {[%clk 0:02:57]}  Bg7 {[%clk 0:02:40]} 8. O-O {[%clk 0:02:56]}  O-O {[%clk 0:02:38]} 9. Nd2 {[%clk 0:02:56]}  b6 {[%clk 0:02:21]} 10. N2f3 {[%clk 0:02:53]}  Bb7 {[%clk 0:02:20]} 11. Re1 {[%clk 0:02:53]}  e6 {[%clk 0:02:10]} 12. Bg5 {[%clk 0:02:42]}  Qd7 {[%clk 0:01:37]} 13. Qe2 {[%clk 0:02:20]}  Nc6 {[%clk 0:01:34]} 14. Nb3 {[%clk 0:02:10]}  Rac8 {[%clk 0:01:21]} 15. Rad1 {[%clk 0:02:10]}  Nce7 {[%clk 0:01:10]} 16. Bxe7 {[%clk 0:02:05]}  Qxe7 {[%clk 0:00:36]} 17. Bxd5 {[%clk 0:02:03]} 1-0


[Site "https://www.chess.com"]